Workbook

Sheet Cover
A3: Navigator
C5: =Client_Name -> SumProduct Pty Limited
C6: =Model_Name -> SP Calculating the Pre-Tax Cost of Equity.xlsm
C14: Primary Developer: Liam Bastick
C16: General Cover Notes:
C17: Example to show how the Pre-Tax Cost of Equity may be solved.
C21: Any queries, please e-mail: | G21: liam.bastick@sumproduct.com
C22: Website: | G22: www.sumproduct.com

Sheet Navigator
A1: Navigator
A2: =Model_Name -> SP Calculating the Pre-Tax Cost of Equity.xlsm
A3: Navigator
E4: Error Checks: | G4: =Overall_Error_Check -> 0
B7: 1 | C7: Table of Contents
F9: Cover
F10: Style Guide
F11: Model Parameters
F12: Pre-Tax Cost of Equity Example
F13: Timing
F14: Lookup Data
F15: Error Checks

Sheet Style Guide
A1: =IF(ISERROR(RIGHT(CELL("filename",A1),LEN(CELL("filename",A1))-FIND("]",CELL("filename",A1)))), "", RIGHT(CELL("filename",A1),LEN(CELL("filename",A1))-FIND("]",CELL("filename",A1)))) -> Style Guide
A2: =Model_Name -> SP Calculating the Pre-Tax Cost of Equity.xlsm
A3: Navigator
E4: Error Checks: | I4: =Overall_Error_Check -> 0
B6: =MAX($B$5:$B5)+1 -> 1 | C6: Formatting of Headers / Dividers
C8: Description | I8: Display | K8: Style Name
C10: Sheet Title | I10: =C10 -> Sheet Title | K10: Sheet Title
C11: Model Name | I11: =C11 -> Model Name | K11: Model Name
C13: Header 1 | I13: =C13 -> Header 1 | K13: Header 1
C14: Header 2 | I14: =C14 -> Header 2 | K14: Header 2
C15: Header 3 | I15: =C15 -> Header 3 | K15: Header 3
C16: Header 4 | I16: =C16 -> Header 4 | K16: Header 4
C18: Notes | I18: =C18 -> Notes | K18: Notes
C20: Table Heading | I20: =C20 -> Table Heading | K20: Table Heading
B23: =MAX($B$5:$B22)+1 -> 2 | C23: Individual Cell Styles
C25: Description | I25: Display | K25: Style Name
C27: Assumption | I27: Assumption | K27: =C27 -> Assumption
C29: Constraint | I29: =C29 -> Constraint | K29: =C29 -> Constraint
C31: Empty | K31: =C31 -> Empty
C33: Error Check | I33: 0 | K33: =C33 -> Error Check
C35: Hyperlink | I35: Hyperlink | K35: =C35 -> Hyperlink
C37: Internal Reference | I37: ='Error Checks'!E12 -> NPVs reconcile | K37: =C37 -> Internal Reference
C39: Line Calculation | I39: 77 | K39: Line Calc
C41: Line Total | I41: =I39 -> 77 | K41: =C41 -> Line Total
C43: Parameter | I43: 365 | K43: =C43 -> Parameter
C45: Range Name Description | I45: Not_Named | K45: =C45 -> Range Name Description
C47: Row Reference | I47: =ROW(C47) -> 47 | K47: Row Ref
C49: Row Summary | I49: =I41 -> 77 | K49: =C49 -> Row Summary
C51: Units | I51: A$ | K51: =C51 -> Units
C53: WIP | K53: =C53 -> WIP
B56: =MAX($B$5:$B55)+1 -> 3 | C56: Numerical Styles
C58: Description | I58: Display | K58: Style Name
C60: Comma | I60: 123456.789 | K60: =C60 -> Comma
C62: Comma [0] | I62: -123456.789 | K62: Comma [0]
C64: Currency | I64: 123456.789 | K64: Currency
C66: Currency [0] | I66: 123456.789 | K66: Currency [0]
C68: Date | I68: =TODAY() -> 2020-05-21 | K68: =C68 -> Date
C70: Date Heading | I70: =TODAY() -> 2020-05-21 | K70: =C70 -> Date Heading
C72: Numbers 0 | I72: -123456.789 | K72: =C72 -> Numbers 0
C74: Percent | I74: 0.5 | K74: =C74 -> Percent

Sheet Model Parameters
A1: =IF(ISERROR(RIGHT(CELL("filename",A1),LEN(CELL("filename",A1))-FIND("]",CELL("filename",A1)))), "", RIGHT(CELL("filename",A1),LEN(CELL("filename",A1))-FIND("]",CELL("filename",A1)))) -> Model Parameters
A2: =Model_Name -> SP Calculating the Pre-Tax Cost of Equity.xlsm
A3: Navigator
E4: Error Checks: | I4: =Overall_Error_Check -> 0
B6: =MAX($B$5:$B5)+1 -> 1 | C6: General
C8: Key Inputs
E10: General
E11: Model Name | G11: =IF(ISERROR(OR(FIND("[",CELL("filename",A1)),FIND("]",CELL("filename",A1)))),"",MID(CELL("filename",A1),FIND("[",CELL("filename",A1))+1,FIND("]",CELL("filename",A1))-FIND("[",CELL("filename",A1))-1)) -> SP Calculating the Pre-Tax Cost of Equity.xlsm
E12: Client Name | G12: SumProduct Pty Limited
B15: =MAX($B$5:$B14)+1 -> 2 | C15: General Range Names
C17: Technical Assumptions
E19: Days in Year | G19: 365
E20: Months in Month | G20: 1
E21: Months in Quarter | G21: 3
E22: Months in Half Yr | G22: 6
E23: Months in Year | G23: 12
E24: Quarters in Year | G24: 4
E26: Rounding Accuracy | G26: 0
E28: Very Large Number | G28: 1e+99
E29: Very Small Number | G29: 1e-08
E31: Thousand | G31: 1000

Sheet Pre-Tax Cost of Equity Example
A1: =IF(ISERROR(RIGHT(CELL("filename",A1),LEN(CELL("filename",A1))-FIND("]",CELL("filename",A1)))), "", RIGHT(CELL("filename",A1),LEN(CELL("filename",A1))-FIND("]",CELL("filename",A1)))) -> Pre-Tax Cost of Equity Example
A2: =Model_Name -> SP Calculating the Pre-Tax Cost of Equity.xlsm
A3: Navigator
B4: Error Checks: | F4: =Overall_Error_Check -> 0
J5: =Timing!J5 -> 2020-12-31 | K5: =Timing!K5 -> 2021-12-31 | L5: =Timing!L5 -> 2022-12-31 | M5: =Timing!M5 -> 2023-12-31 | N5: =Timing!N5 -> 2024-12-31 | O5: =Timing!O5 -> 2025-12-31 | P5: =Timing!P5 -> 2026-12-31 | Q5: =Timing!Q5 -> 2027-12-31 | R5: =Timing!R5 -> 2028-12-31 | S5: =Timing!S5 -> 2029-12-31 | T5: =Timing!T5 -> 2030-12-31 | U5: =Timing!U5 -> 2031-12-31 | V5: =Timing!V5 -> 2032-12-31 | W5: =Timing!W5 -> 2033-12-31 | X5: =Timing!X5 -> 2034-12-31 | Y5: =Timing!Y5 -> 2035-12-31 | Z5: =Timing!Z5 -> 2036-12-31 | AA5: =Timing!AA5 -> 2037-12-31 | AB5: =Timing!AB5 -> 2038-12-31 | AC5: =Timing!AC5 -> 2039-12-31
C6: =Timing!C6 -> Start Date | J6: =Timing!J6 -> 2020-01-01 | K6: =Timing!K6 -> 2021-01-01 | L6: =Timing!L6 -> 2022-01-01 | M6: =Timing!M6 -> 2023-01-01 | N6: =Timing!N6 -> 2024-01-01 | O6: =Timing!O6 -> 2025-01-01 | P6: =Timing!P6 -> 2026-01-01 | Q6: =Timing!Q6 -> 2027-01-01 | R6: =Timing!R6 -> 2028-01-01 | S6: =Timing!S6 -> 2029-01-01 | T6: =Timing!T6 -> 2030-01-01 | U6: =Timing!U6 -> 2031-01-01 | V6: =Timing!V6 -> 2032-01-01 | W6: =Timing!W6 -> 2033-01-01 | X6: =Timing!X6 -> 2034-01-01 | Y6: =Timing!Y6 -> 2035-01-01 | Z6: =Timing!Z6 -> 2036-01-01 | AA6: =Timing!AA6 -> 2037-01-01 | AB6: =Timing!AB6 -> 2038-01-01 | AC6: =Timing!AC6 -> 2039-01-01
C7: =Timing!C7 -> End Date | J7: =Timing!J7 -> 2020-12-31 | K7: =Timing!K7 -> 2021-12-31 | L7: =Timing!L7 -> 2022-12-31 | M7: =Timing!M7 -> 2023-12-31 | N7: =Timing!N7 -> 2024-12-31 | O7: =Timing!O7 -> 2025-12-31 | P7: =Timing!P7 -> 2026-12-31 | Q7: =Timing!Q7 -> 2027-12-31 | R7: =Timing!R7 -> 2028-12-31 | S7: =Timing!S7 -> 2029-12-31 | T7: =Timing!T7 -> 2030-12-31 | U7: =Timing!U7 -> 2031-12-31 | V7: =Timing!V7 -> 2032-12-31 | W7: =Timing!W7 -> 2033-12-31 | X7: =Timing!X7 -> 2034-12-31 | Y7: =Timing!Y7 -> 2035-12-31 | Z7: =Timing!Z7 -> 2036-12-31 | AA7: =Timing!AA7 -> 2037-12-31 | AB7: =Timing!AB7 -> 2038-12-31 | AC7: =Timing!AC7 -> 2039-12-31
C8: =Timing!C8 -> Number of Days | J8: =Timing!J8 -> 366 | K8: =Timing!K8 -> 365 | L8: =Timing!L8 -> 365 | M8: =Timing!M8 -> 365 | N8: =Timing!N8 -> 366 | O8: =Timing!O8 -> 365 | P8: =Timing!P8 -> 365 | Q8: =Timing!Q8 -> 365 | R8: =Timing!R8 -> 366 | S8: =Timing!S8 -> 365 | T8: =Timing!T8 -> 365 | U8: =Timing!U8 -> 365 | V8: =Timing!V8 -> 366 | W8: =Timing!W8 -> 365 | X8: =Timing!X8 -> 365 | Y8: =Timing!Y8 -> 365 | Z8: =Timing!Z8 -> 366 | AA8: =Timing!AA8 -> 365 | AB8: =Timing!AB8 -> 365 | AC8: =Timing!AC8 -> 365
C9: =Timing!C9 -> Counter | J9: =Timing!J9 -> 1 | K9: =Timing!K9 -> 2 | L9: =Timing!L9 -> 3 | M9: =Timing!M9 -> 4 | N9: =Timing!N9 -> 5 | O9: =Timing!O9 -> 6 | P9: =Timing!P9 -> 7 | Q9: =Timing!Q9 -> 8 | R9: =Timing!R9 -> 9 | S9: =Timing!S9 -> 10 | T9: =Timing!T9 -> 11 | U9: =Timing!U9 -> 12 | V9: =Timing!V9 -> 13 | W9: =Timing!W9 -> 14 | X9: =Timing!X9 -> 15 | Y9: =Timing!Y9 -> 16 | Z9: =Timing!Z9 -> 17 | AA9: =Timing!AA9 -> 18 | AB9: =Timing!AB9 -> 19 | AC9: =Timing!AC9 -> 20
B11: =MAX($B$10:$B10)+1 -> 1 | C11: Key Assumptions
C13: Key Inputs
D15: Financing Assumptions
E17: Pre-Tax Cost of Debt | F17: % | G17: 0.08 | I17: PreTax_Cost_of_Debt
E18: Post-Tax Cost of Equity | F18: % | G18: 0.12 | I18: PostTax_Cost_of_Equity
E19: Tax Rate | F19: % | G19: 0.3 | I19: Tax_Rate
E20: Proportion of Debt | F20: % | G20: 0.5 | I20: Proportion_of_Debt
E22: Post Tax WACC | F22: % | G22: =(PreTax_Cost_of_Debt*(1-Tax_Rate)*Proportion_of_Debt)+(PostTax_Cost_of_Equity*(1-Proportion_of_Debt)) -> 0.088 | I22: Post_Tax_WACC
E24: Terminal Value | F24: [1,0] | G24: Yes | I24: Terminal_Value_Switch
E26: =IF(Terminal_Value_Switch=Yes,"Growth Rate in Perpetuity","") -> Growth Rate in Perpetuity | F26: =IF(Terminal_Value_Switch=Yes,"%","") -> % | G26: 0.02 | I26: =IF(Terminal_Value_Switch=Yes,"Growth_Rate_in_Perpetuity","") -> Growth_Rate_in_Perpetuity
E28: =IF(Terminal_Value_Switch=Yes,"Tolerance in NPV","") -> Tolerance in NPV | F28: =IF(Terminal_Value_Switch=Yes,"%","") -> % | G28: 0.9 | I28: =IF(Terminal_Value_Switch=Yes,"TV Tolerance","") -> TV Tolerance
D31: Timing Assumptions
E33: Number of Periods | F33: # | G33: 8 | I33: Number_of_Periods
E34: Tax Delay | F34: # Periods | G34: 1 | I34: Tax_Delay
E35: Timing of Cash Flows | F35: Text | G35: Middle | I35: Timing_of_CashFlows
E37: Post-Tax Discount Rates
E38: =Start -> Start | F38: =IF(Terminal_Value_Switch=Yes,"%","") -> % | J38: =IF(J$9<=Number_of_Periods,(1+Post_Tax_WACC)^-(SUM($I$8:I$8)/Days_in_Year),"") -> 1 | K38: =IF(K$9<=Number_of_Periods,(1+Post_Tax_WACC)^-(SUM($I$8:J$8)/Days_in_Year),"") -> 0.9189052896 | L38: =IF(L$9<=Number_of_Periods,(1+Post_Tax_WACC)^-(SUM($I$8:K$8)/Days_in_Year),"") -> 0.8445820676 | M38: =IF(M$9<=Number_of_Periods,(1+Post_Tax_WACC)^-(SUM($I$8:L$8)/Days_in_Year),"") -> 0.7762702827 | N38: =IF(N$9<=Number_of_Periods,(1+Post_Tax_WACC)^-(SUM($I$8:M$8)/Days_in_Year),"") -> 0.7134837158 | O38: =IF(O$9<=Number_of_Periods,(1+Post_Tax_WACC)^-(SUM($I$8:N$8)/Days_in_Year),"") -> 0.6556239604 | P38: =IF(P$9<=Number_of_Periods,(1+Post_Tax_WACC)^-(SUM($I$8:O$8)/Days_in_Year),"") -> 0.6025955519 | Q38: =IF(Q$9<=Number_of_Periods,(1+Post_Tax_WACC)^-(SUM($I$8:P$8)/Days_in_Year),"") -> 0.5538562058 | R38: =IF(R$9<=Number_of_Periods,(1+Post_Tax_WACC)^-(SUM($I$8:Q$8)/Days_in_Year),"") ->  | S38: =IF(S$9<=Number_of_Periods,(1+Post_Tax_WACC)^-(SUM($I$8:R$8)/Days_in_Year),"") ->  | T38: =IF(T$9<=Number_of_Periods,(1+Post_Tax_WACC)^-(SUM($I$8:S$8)/Days_in_Year),"") ->  | U38: =IF(U$9<=Number_of_Periods,(1+Post_Tax_WACC)^-(SUM($I$8:T$8)/Days_in_Year),"") ->  | V38: =IF(V$9<=Number_of_Periods,(1+Post_Tax_WACC)^-(SUM($I$8:U$8)/Days_in_Year),"") ->  | W38: =IF(W$9<=Number_of_Periods,(1+Post_Tax_WACC)^-(SUM($I$8:V$8)/Days_in_Year),"") ->  | X38: =IF(X$9<=Number_of_Periods,(1+Post_Tax_WACC)^-(SUM($I$8:W$8)/Days_in_Year),"") ->  | Y38: =IF(Y$9<=Number_of_Periods,(1+Post_Tax_WACC)^-(SUM($I$8:X$8)/Days_in_Year),"") ->  | Z38: =IF(Z$9<=Number_of_Periods,(1+Post_Tax_WACC)^-(SUM($I$8:Y$8)/Days_in_Year),"") ->  | AA38: =IF(AA$9<=Number_of_Periods,(1+Post_Tax_WACC)^-(SUM($I$8:Z$8)/Days_in_Year),"") ->  | AB38: =IF(AB$9<=Number_of_Periods,(1+Post_Tax_WACC)^-(SUM($I$8:AA$8)/Days_in_Year),"") ->  | AC38: =IF(AC$9<=Number_of_Periods,(1+Post_Tax_WACC)^-(SUM($I$8:AB$8)/Days_in_Year),"") -> 
E39: =Middle -> Middle | F39: =IF(Terminal_Value_Switch=Yes,"%","") -> % | J39: =IF(J$9<=Number_of_Periods,(1+Post_Tax_WACC)^-((SUM($I$8:I$8)+SUM($J$8:J$8))/(2*Days_in_Year)),"") -> 0.9585954775 | K39: =IF(K$9<=Number_of_Periods,(1+Post_Tax_WACC)^-((SUM($I$8:J$8)+SUM($J$8:K$8))/(2*Days_in_Year)),"") -> 0.8809602315 | L39: =IF(L$9<=Number_of_Periods,(1+Post_Tax_WACC)^-((SUM($I$8:K$8)+SUM($J$8:L$8))/(2*Days_in_Year)),"") -> 0.8097060951 | M39: =IF(M$9<=Number_of_Periods,(1+Post_Tax_WACC)^-((SUM($I$8:L$8)+SUM($J$8:M$8))/(2*Days_in_Year)),"") -> 0.7442151609 | N39: =IF(N$9<=Number_of_Periods,(1+Post_Tax_WACC)^-((SUM($I$8:M$8)+SUM($J$8:N$8))/(2*Days_in_Year)),"") -> 0.6839422632 | O39: =IF(O$9<=Number_of_Periods,(1+Post_Tax_WACC)^-((SUM($I$8:N$8)+SUM($J$8:O$8))/(2*Days_in_Year)),"") -> 0.6285507794 | P39: =IF(P$9<=Number_of_Periods,(1+Post_Tax_WACC)^-((SUM($I$8:O$8)+SUM($J$8:P$8))/(2*Days_in_Year)),"") -> 0.5777121134 | Q39: =IF(Q$9<=Number_of_Periods,(1+Post_Tax_WACC)^-((SUM($I$8:P$8)+SUM($J$8:Q$8))/(2*Days_in_Year)),"") -> 0.5309853983 | R39: =IF(R$9<=Number_of_Periods,(1+Post_Tax_WACC)^-((SUM($I$8:Q$8)+SUM($J$8:R$8))/(2*Days_in_Year)),"") ->  | S39: =IF(S$9<=Number_of_Periods,(1+Post_Tax_WACC)^-((SUM($I$8:R$8)+SUM($J$8:S$8))/(2*Days_in_Year)),"") ->  | T39: =IF(T$9<=Number_of_Periods,(1+Post_Tax_WACC)^-((SUM($I$8:S$8)+SUM($J$8:T$8))/(2*Days_in_Year)),"") ->  | U39: =IF(U$9<=Number_of_Periods,(1+Post_Tax_WACC)^-((SUM($I$8:T$8)+SUM($J$8:U$8))/(2*Days_in_Year)),"") ->  | V39: =IF(V$9<=Number_of_Periods,(1+Post_Tax_WACC)^-((SUM($I$8:U$8)+SUM($J$8:V$8))/(2*Days_in_Year)),"") ->  | W39: =IF(W$9<=Number_of_Periods,(1+Post_Tax_WACC)^-((SUM($I$8:V$8)+SUM($J$8:W$8))/(2*Days_in_Year)),"") ->  | X39: =IF(X$9<=Number_of_Periods,(1+Post_Tax_WACC)^-((SUM($I$8:W$8)+SUM($J$8:X$8))/(2*Days_in_Year)),"") ->  | Y39: =IF(Y$9<=Number_of_Periods,(1+Post_Tax_WACC)^-((SUM($I$8:X$8)+SUM($J$8:Y$8))/(2*Days_in_Year)),"") ->  | Z39: =IF(Z$9<=Number_of_Periods,(1+Post_Tax_WACC)^-((SUM($I$8:Y$8)+SUM($J$8:Z$8))/(2*Days_in_Year)),"") ->  | AA39: =IF(AA$9<=Number_of_Periods,(1+Post_Tax_WACC)^-((SUM($I$8:Z$8)+SUM($J$8:AA$8))/(2*Days_in_Year)),"") ->  | AB39: =IF(AB$9<=Number_of_Periods,(1+Post_Tax_WACC)^-((SUM($I$8:AA$8)+SUM($J$8:AB$8))/(2*Days_in_Year)),"") ->  | AC39: =IF(AC$9<=Number_of_Periods,(1+Post_Tax_WACC)^-((SUM($I$8:AB$8)+SUM($J$8:AC$8))/(2*Days_in_Year)),"") -> 
E40: =End -> End | F40: =IF(Terminal_Value_Switch=Yes,"%","") -> % | J40: =IF(J$9<=Number_of_Periods,(1+Post_Tax_WACC)^-(SUM($J$8:J$8)/Days_in_Year),"") -> 0.9189052896 | K40: =IF(K$9<=Number_of_Periods,(1+Post_Tax_WACC)^-(SUM($J$8:K$8)/Days_in_Year),"") -> 0.8445820676 | L40: =IF(L$9<=Number_of_Periods,(1+Post_Tax_WACC)^-(SUM($J$8:L$8)/Days_in_Year),"") -> 0.7762702827 | M40: =IF(M$9<=Number_of_Periods,(1+Post_Tax_WACC)^-(SUM($J$8:M$8)/Days_in_Year),"") -> 0.7134837158 | N40: =IF(N$9<=Number_of_Periods,(1+Post_Tax_WACC)^-(SUM($J$8:N$8)/Days_in_Year),"") -> 0.6556239604 | O40: =IF(O$9<=Number_of_Periods,(1+Post_Tax_WACC)^-(SUM($J$8:O$8)/Days_in_Year),"") -> 0.6025955519 | P40: =IF(P$9<=Number_of_Periods,(1+Post_Tax_WACC)^-(SUM($J$8:P$8)/Days_in_Year),"") -> 0.5538562058 | Q40: =IF(Q$9<=Number_of_Periods,(1+Post_Tax_WACC)^-(SUM($J$8:Q$8)/Days_in_Year),"") -> 0.5090590126 | R40: =IF(R$9<=Number_of_Periods,(1+Post_Tax_WACC)^-(SUM($J$8:R$8)/Days_in_Year),"") ->  | S40: =IF(S$9<=Number_of_Periods,(1+Post_Tax_WACC)^-(SUM($J$8:S$8)/Days_in_Year),"") ->  | T40: =IF(T$9<=Number_of_Periods,(1+Post_Tax_WACC)^-(SUM($J$8:T$8)/Days_in_Year),"") ->  | U40: =IF(U$9<=Number_of_Periods,(1+Post_Tax_WACC)^-(SUM($J$8:U$8)/Days_in_Year),"") ->  | V40: =IF(V$9<=Number_of_Periods,(1+Post_Tax_WACC)^-(SUM($J$8:V$8)/Days_in_Year),"") ->  | W40: =IF(W$9<=Number_of_Periods,(1+Post_Tax_WACC)^-(SUM($J$8:W$8)/Days_in_Year),"") ->  | X40: =IF(X$9<=Number_of_Periods,(1+Post_Tax_WACC)^-(SUM($J$8:X$8)/Days_in_Year),"") ->  | Y40: =IF(Y$9<=Number_of_Periods,(1+Post_Tax_WACC)^-(SUM($J$8:Y$8)/Days_in_Year),"") ->  | Z40: =IF(Z$9<=Number_of_Periods,(1+Post_Tax_WACC)^-(SUM($J$8:Z$8)/Days_in_Year),"") ->  | AA40: =IF(AA$9<=Number_of_Periods,(1+Post_Tax_WACC)^-(SUM($J$8:AA$8)/Days_in_Year),"") ->  | AB40: =IF(AB$9<=Number_of_Periods,(1+Post_Tax_WACC)^-(SUM($J$8:AB$8)/Days_in_Year),"") ->  | AC40: =IF(AC$9<=Number_of_Periods,(1+Post_Tax_WACC)^-(SUM($J$8:AC$8)/Days_in_Year),"") -> 
E41: =Timing_of_CashFlows&" Chosen" -> Middle Chosen | F41: =IF(Terminal_Value_Switch=Yes,"%","") -> % | J41: =IF(J$9<=Number_of_Periods,INDEX(J$38:J$40,MATCH(Timing_of_CashFlows,$E$38:$E$40,0)),"") -> 0.9585954775 | K41: 0.8809602315 | L41: 0.8097060951 | M41: 0.7442151609 | N41: 0.6839422632 | O41: 0.6285507794 | P41: 0.5777121134 | Q41: 0.5309853983
E43: Pre-Tax Discount Rates
E44: =Start -> Start | F44: =IF(Terminal_Value_Switch=Yes,"%","") -> % | J44: =IF(J$9<=Number_of_Periods,(1+Pre_Tax_WACC)^-(SUM($I$8:I$8)/Days_in_Year),"") -> 1 | K44: =IF(K$9<=Number_of_Periods,(1+Pre_Tax_WACC)^-(SUM($I$8:J$8)/Days_in_Year),"") -> 0.8953764578 | L44: =IF(L$9<=Number_of_Periods,(1+Pre_Tax_WACC)^-(SUM($I$8:K$8)/Days_in_Year),"") -> 0.8019411049 | M44: =IF(M$9<=Number_of_Periods,(1+Pre_Tax_WACC)^-(SUM($I$8:L$8)/Days_in_Year),"") -> 0.7182560252 | N44: =IF(N$9<=Number_of_Periods,(1+Pre_Tax_WACC)^-(SUM($I$8:M$8)/Days_in_Year),"") -> 0.6433037472 | O44: =IF(O$9<=Number_of_Periods,(1+Pre_Tax_WACC)^-(SUM($I$8:N$8)/Days_in_Year),"") -> 0.5759990305 | P44: =IF(P$9<=Number_of_Periods,(1+Pre_Tax_WACC)^-(SUM($I$8:O$8)/Days_in_Year),"") -> 0.5158917178 | Q44: =IF(Q$9<=Number_of_Periods,(1+Pre_Tax_WACC)^-(SUM($I$8:P$8)/Days_in_Year),"") -> 0.4620567925 | R44: =IF(R$9<=Number_of_Periods,(1+Pre_Tax_WACC)^-(SUM($I$8:Q$8)/Days_in_Year),"") ->  | S44: =IF(S$9<=Number_of_Periods,(1+Pre_Tax_WACC)^-(SUM($I$8:R$8)/Days_in_Year),"") ->  | T44: =IF(T$9<=Number_of_Periods,(1+Pre_Tax_WACC)^-(SUM($I$8:S$8)/Days_in_Year),"") ->  | U44: =IF(U$9<=Number_of_Periods,(1+Pre_Tax_WACC)^-(SUM($I$8:T$8)/Days_in_Year),"") ->  | V44: =IF(V$9<=Number_of_Periods,(1+Pre_Tax_WACC)^-(SUM($I$8:U$8)/Days_in_Year),"") ->  | W44: =IF(W$9<=Number_of_Periods,(1+Pre_Tax_WACC)^-(SUM($I$8:V$8)/Days_in_Year),"") ->  | X44: =IF(X$9<=Number_of_Periods,(1+Pre_Tax_WACC)^-(SUM($I$8:W$8)/Days_in_Year),"") ->  | Y44: =IF(Y$9<=Number_of_Periods,(1+Pre_Tax_WACC)^-(SUM($I$8:X$8)/Days_in_Year),"") ->  | Z44: =IF(Z$9<=Number_of_Periods,(1+Pre_Tax_WACC)^-(SUM($I$8:Y$8)/Days_in_Year),"") ->  | AA44: =IF(AA$9<=Number_of_Periods,(1+Pre_Tax_WACC)^-(SUM($I$8:Z$8)/Days_in_Year),"") ->  | AB44: =IF(AB$9<=Number_of_Periods,(1+Pre_Tax_WACC)^-(SUM($I$8:AA$8)/Days_in_Year),"") ->  | AC44: =IF(AC$9<=Number_of_Periods,(1+Pre_Tax_WACC)^-(SUM($I$8:AB$8)/Days_in_Year),"") -> 
E45: =Middle -> Middle | F45: =IF(Terminal_Value_Switch=Yes,"%","") -> % | J45: =IF(J$9<=Number_of_Periods,(1+Pre_Tax_WACC)^-((SUM($I$8:I$8)+SUM($J$8:J$8))/(2*Days_in_Year)),"") -> 0.9462433396 | K45: =IF(K$9<=Number_of_Periods,(1+Pre_Tax_WACC)^-((SUM($I$8:J$8)+SUM($J$8:K$8))/(2*Days_in_Year)),"") -> 0.8473719289 | L45: =IF(L$9<=Number_of_Periods,(1+Pre_Tax_WACC)^-((SUM($I$8:K$8)+SUM($J$8:L$8))/(2*Days_in_Year)),"") -> 0.7589459997 | M45: =IF(M$9<=Number_of_Periods,(1+Pre_Tax_WACC)^-((SUM($I$8:L$8)+SUM($J$8:M$8))/(2*Days_in_Year)),"") -> 0.6797475947 | N45: =IF(N$9<=Number_of_Periods,(1+Pre_Tax_WACC)^-((SUM($I$8:M$8)+SUM($J$8:N$8))/(2*Days_in_Year)),"") -> 0.6087218862 | O45: =IF(O$9<=Number_of_Periods,(1+Pre_Tax_WACC)^-((SUM($I$8:N$8)+SUM($J$8:O$8))/(2*Days_in_Year)),"") -> 0.5451175371 | P45: =IF(P$9<=Number_of_Periods,(1+Pre_Tax_WACC)^-((SUM($I$8:O$8)+SUM($J$8:P$8))/(2*Days_in_Year)),"") -> 0.4882328055 | Q45: =IF(Q$9<=Number_of_Periods,(1+Pre_Tax_WACC)^-((SUM($I$8:P$8)+SUM($J$8:Q$8))/(2*Days_in_Year)),"") -> 0.4372841748 | R45: =IF(R$9<=Number_of_Periods,(1+Pre_Tax_WACC)^-((SUM($I$8:Q$8)+SUM($J$8:R$8))/(2*Days_in_Year)),"") ->  | S45: =IF(S$9<=Number_of_Periods,(1+Pre_Tax_WACC)^-((SUM($I$8:R$8)+SUM($J$8:S$8))/(2*Days_in_Year)),"") ->  | T45: =IF(T$9<=Number_of_Periods,(1+Pre_Tax_WACC)^-((SUM($I$8:S$8)+SUM($J$8:T$8))/(2*Days_in_Year)),"") ->  | U45: =IF(U$9<=Number_of_Periods,(1+Pre_Tax_WACC)^-((SUM($I$8:T$8)+SUM($J$8:U$8))/(2*Days_in_Year)),"") ->  | V45: =IF(V$9<=Number_of_Periods,(1+Pre_Tax_WACC)^-((SUM($I$8:U$8)+SUM($J$8:V$8))/(2*Days_in_Year)),"") ->  | W45: =IF(W$9<=Number_of_Periods,(1+Pre_Tax_WACC)^-((SUM($I$8:V$8)+SUM($J$8:W$8))/(2*Days_in_Year)),"") ->  | X45: =IF(X$9<=Number_of_Periods,(1+Pre_Tax_WACC)^-((SUM($I$8:W$8)+SUM($J$8:X$8))/(2*Days_in_Year)),"") ->  | Y45: =IF(Y$9<=Number_of_Periods,(1+Pre_Tax_WACC)^-((SUM($I$8:X$8)+SUM($J$8:Y$8))/(2*Days_in_Year)),"") ->  | Z45: =IF(Z$9<=Number_of_Periods,(1+Pre_Tax_WACC)^-((SUM($I$8:Y$8)+SUM($J$8:Z$8))/(2*Days_in_Year)),"") ->  | AA45: =IF(AA$9<=Number_of_Periods,(1+Pre_Tax_WACC)^-((SUM($I$8:Z$8)+SUM($J$8:AA$8))/(2*Days_in_Year)),"") ->  | AB45: =IF(AB$9<=Number_of_Periods,(1+Pre_Tax_WACC)^-((SUM($I$8:AA$8)+SUM($J$8:AB$8))/(2*Days_in_Year)),"") ->  | AC45: =IF(AC$9<=Number_of_Periods,(1+Pre_Tax_WACC)^-((SUM($I$8:AB$8)+SUM($J$8:AC$8))/(2*Days_in_Year)),"") -> 
E46: =End -> End | F46: =IF(Terminal_Value_Switch=Yes,"%","") -> % | J46: =IF(J$9<=Number_of_Periods,(1+Pre_Tax_WACC)^-(SUM($J$8:J$8)/Days_in_Year),"") -> 0.8953764578 | K46: =IF(K$9<=Number_of_Periods,(1+Pre_Tax_WACC)^-(SUM($J$8:K$8)/Days_in_Year),"") -> 0.8019411049 | L46: =IF(L$9<=Number_of_Periods,(1+Pre_Tax_WACC)^-(SUM($J$8:L$8)/Days_in_Year),"") -> 0.7182560252 | M46: =IF(M$9<=Number_of_Periods,(1+Pre_Tax_WACC)^-(SUM($J$8:M$8)/Days_in_Year),"") -> 0.6433037472 | N46: =IF(N$9<=Number_of_Periods,(1+Pre_Tax_WACC)^-(SUM($J$8:N$8)/Days_in_Year),"") -> 0.5759990305 | O46: =IF(O$9<=Number_of_Periods,(1+Pre_Tax_WACC)^-(SUM($J$8:O$8)/Days_in_Year),"") -> 0.5158917178 | P46: =IF(P$9<=Number_of_Periods,(1+Pre_Tax_WACC)^-(SUM($J$8:P$8)/Days_in_Year),"") -> 0.4620567925 | Q46: =IF(Q$9<=Number_of_Periods,(1+Pre_Tax_WACC)^-(SUM($J$8:Q$8)/Days_in_Year),"") -> 0.4138397112 | R46: =IF(R$9<=Number_of_Periods,(1+Pre_Tax_WACC)^-(SUM($J$8:R$8)/Days_in_Year),"") ->  | S46: =IF(S$9<=Number_of_Periods,(1+Pre_Tax_WACC)^-(SUM($J$8:S$8)/Days_in_Year),"") ->  | T46: =IF(T$9<=Number_of_Periods,(1+Pre_Tax_WACC)^-(SUM($J$8:T$8)/Days_in_Year),"") ->  | U46: =IF(U$9<=Number_of_Periods,(1+Pre_Tax_WACC)^-(SUM($J$8:U$8)/Days_in_Year),"") ->  | V46: =IF(V$9<=Number_of_Periods,(1+Pre_Tax_WACC)^-(SUM($J$8:V$8)/Days_in_Year),"") ->  | W46: =IF(W$9<=Number_of_Periods,(1+Pre_Tax_WACC)^-(SUM($J$8:W$8)/Days_in_Year),"") ->  | X46: =IF(X$9<=Number_of_Periods,(1+Pre_Tax_WACC)^-(SUM($J$8:X$8)/Days_in_Year),"") ->  | Y46: =IF(Y$9<=Number_of_Periods,(1+Pre_Tax_WACC)^-(SUM($J$8:Y$8)/Days_in_Year),"") ->  | Z46: =IF(Z$9<=Number_of_Periods,(1+Pre_Tax_WACC)^-(SUM($J$8:Z$8)/Days_in_Year),"") ->  | AA46: =IF(AA$9<=Number_of_Periods,(1+Pre_Tax_WACC)^-(SUM($J$8:AA$8)/Days_in_Year),"") ->  | AB46: =IF(AB$9<=Number_of_Periods,(1+Pre_Tax_WACC)^-(SUM($J$8:AB$8)/Days_in_Year),"") ->  | AC46: =IF(AC$9<=Number_of_Periods,(1+Pre_Tax_WACC)^-(SUM($J$8:AC$8)/Days_in_Year),"") -> 
E47: =Timing_of_CashFlows&" Chosen" -> Middle Chosen | F47: =IF(Terminal_Value_Switch=Yes,"%","") -> % | J47: =IF(J$9<=Number_of_Periods,INDEX(J$44:J$46,MATCH(Timing_of_CashFlows,$E$44:$E$46,0)),"") -> 0.9462433396 | K47: 0.8473719289 | L47: 0.7589459997 | M47: 0.6797475947 | N47: 0.6087218862 | O47: 0.5451175371 | P47: 0.4882328055 | Q47: 0.4372841748
D50: Cash Flow Assumptions
E52: Pre-Tax Cash Flows | F52: $'000 | J52: 100 | K52: 100 | L52: 100 | M52: 100 | N52: 100 | O52: 100 | P52: 100 | Q52: 100 | R52: 100 | S52: 100 | T52: 100 | U52: 100 | V52: 100 | W52: 100 | X52: 100 | Y52: 100 | Z52: 100 | AA52: 100 | AB52: 100 | AC52: 100
B55: =MAX($B$10:$B54)+1 -> 2 | C55: Post-Tax NPV
C57: Calculation
D59: Post-Tax
E61: =E52 -> Pre-Tax Cash Flows | F61: =F52 -> $'000 | J61: =IF(J$9<=Number_of_Periods,J$52,"") -> 100 | K61: 100 | L61: 100 | M61: 100 | N61: 100 | O61: 100 | P61: 100 | Q61: 100
E62: Tax | F62: =F61 -> $'000 | J62: =IF(AND(J$9<=Number_of_Periods,J$9-Tax_Delay>0),-OFFSET(J61,,-Tax_Delay)*Tax_Rate,"") ->  | K62: -30 | L62: -30 | M62: -30 | N62: -30 | O62: -30 | P62: -30 | Q62: -30
E63: =E$24 -> Terminal Value | F63: =F62 -> $'000 | J63: =IF(AND(J$9=Number_of_Periods,Terminal_Value_Switch=Yes),SUM(J61:J62)*(1+Growth_Rate_in_Perpetuity)/(Post_Tax_WACC-Growth_Rate_in_Perpetuity),"") ->  | Q63: 1050
E65: Total (Undiscounted) | F65: =F63 -> $'000 | J65: =SUM(J61:J63) -> 100 | K65: =SUM(K61:K63) -> 70 | L65: 70 | M65: 70 | N65: 70 | O65: 70 | P65: 70 | Q65: 1120 | R65: 0 | S65: 0 | T65: 0 | U65: 0 | V65: 0 | W65: 0 | X65: 0 | Y65: 0 | Z65: 0 | AA65: 0 | AB65: 0 | AC65: 0
E67: Discount Factor | F67: # | J67: =IF(J$9<=Number_of_Periods,J$41,"") -> 0.9585954775 | K67: 0.8809602315 | L67: 0.8097060951 | M67: 0.7442151609 | N67: 0.6839422632 | O67: 0.6285507794 | P67: 0.5777121134 | Q67: 0.5309853983
E69: Present Value(s) | F69: =F65 -> $'000 | J69: =IF(J$9<=Number_of_Periods,J65*J67,"") -> 95.85954775 | K69: 61.6672162 | L69: 56.67942666 | M69: 52.09506127 | N69: 47.87595843 | O69: 43.99855456 | P69: 40.43984794 | Q69: 594.7036461
E71: NPV | F71: =F69 -> $'000 | I71: =SUM(J69:AC69) -> 993.3192589
E73: TV Tolerance | F73: =F24 -> [1,0] | G73: =AND(Terminal_Value_Switch=Yes,(SUMPRODUCT(J63:AC63,J67:AC67)/I71)>TV_Tolerance)*1 -> 0
B76: =MAX($B$10:$B75)+1 -> 3 | C76: Pre-Tax NPV
C78: Calculating Pre-Tax Cost of Equity
D80: Financing Assumptions
E82: Pre-Tax Cost of Debt | F82: % | G82: =PreTax_Cost_of_Debt -> 0.08
E83: Pre-Tax Cost of Equity | F83: % | G83: 0.1530229798 | I83: PreTax_Cost_of_Equity
E84: Proportion of Debt | F84: % | G84: =Proportion_of_Debt -> 0.5
E86: Pre-Tax WACC | F86: % | G86: =(PreTax_Cost_of_Debt*Proportion_of_Debt)+(PreTax_Cost_of_Equity*(1-Proportion_of_Debt)) -> 0.1165114899
C89: Calculation
D91: Pre-Tax
E93: =E61 -> Pre-Tax Cash Flows | F93: =F71 -> $'000 | J93: =IF(J$9<=Number_of_Periods,J$52,"") -> 100 | K93: 100 | L93: 100 | M93: 100 | N93: 100 | O93: 100 | P93: 100 | Q93: 100
E94: =E$24 -> Terminal Value | F94: =F93 -> $'000 | J94: =IF(AND(J$9=Number_of_Periods,Terminal_Value_Switch=Yes),J93*(1+Growth_Rate_in_Perpetuity)/(Pre_Tax_WACC-Growth_Rate_in_Perpetuity),"") ->  | K94: =IF(AND(K$9=Number_of_Periods,Terminal_Value_Switch=Yes),K93*(1+Growth_Rate_in_Perpetuity)/(Pre_Tax_WACC-Growth_Rate_in_Perpetuity),"") ->  | L94: =IF(AND(L$9=Number_of_Periods,Terminal_Value_Switch=Yes),L93*(1+Growth_Rate_in_Perpetuity)/(Pre_Tax_WACC-Growth_Rate_in_Perpetuity),"") ->  | M94: =IF(AND(M$9=Number_of_Periods,Terminal_Value_Switch=Yes),M93*(1+Growth_Rate_in_Perpetuity)/(Pre_Tax_WACC-Growth_Rate_in_Perpetuity),"") ->  | N94: =IF(AND(N$9=Number_of_Periods,Terminal_Value_Switch=Yes),N93*(1+Growth_Rate_in_Perpetuity)/(Pre_Tax_WACC-Growth_Rate_in_Perpetuity),"") ->  | O94: =IF(AND(O$9=Number_of_Periods,Terminal_Value_Switch=Yes),O93*(1+Growth_Rate_in_Perpetuity)/(Pre_Tax_WACC-Growth_Rate_in_Perpetuity),"") ->  | P94: =IF(AND(P$9=Number_of_Periods,Terminal_Value_Switch=Yes),P93*(1+Growth_Rate_in_Perpetuity)/(Pre_Tax_WACC-Growth_Rate_in_Perpetuity),"") ->  | Q94: =IF(AND(Q$9=Number_of_Periods,Terminal_Value_Switch=Yes),Q93*(1+Growth_Rate_in_Perpetuity)/(Pre_Tax_WACC-Growth_Rate_in_Perpetuity),"") -> 1056.868981 | R94: =IF(AND(R$9=Number_of_Periods,Terminal_Value_Switch=Yes),R93*(1+Growth_Rate_in_Perpetuity)/(Pre_Tax_WACC-Growth_Rate_in_Perpetuity),"") ->  | S94: =IF(AND(S$9=Number_of_Periods,Terminal_Value_Switch=Yes),S93*(1+Growth_Rate_in_Perpetuity)/(Pre_Tax_WACC-Growth_Rate_in_Perpetuity),"") ->  | T94: =IF(AND(T$9=Number_of_Periods,Terminal_Value_Switch=Yes),T93*(1+Growth_Rate_in_Perpetuity)/(Pre_Tax_WACC-Growth_Rate_in_Perpetuity),"") ->  | U94: =IF(AND(U$9=Number_of_Periods,Terminal_Value_Switch=Yes),U93*(1+Growth_Rate_in_Perpetuity)/(Pre_Tax_WACC-Growth_Rate_in_Perpetuity),"") ->  | V94: =IF(AND(V$9=Number_of_Periods,Terminal_Value_Switch=Yes),V93*(1+Growth_Rate_in_Perpetuity)/(Pre_Tax_WACC-Growth_Rate_in_Perpetuity),"") ->  | W94: =IF(AND(W$9=Number_of_Periods,Terminal_Value_Switch=Yes),W93*(1+Growth_Rate_in_Perpetuity)/(Pre_Tax_WACC-Growth_Rate_in_Perpetuity),"") ->  | X94: =IF(AND(X$9=Number_of_Periods,Terminal_Value_Switch=Yes),X93*(1+Growth_Rate_in_Perpetuity)/(Pre_Tax_WACC-Growth_Rate_in_Perpetuity),"") ->  | Y94: =IF(AND(Y$9=Number_of_Periods,Terminal_Value_Switch=Yes),Y93*(1+Growth_Rate_in_Perpetuity)/(Pre_Tax_WACC-Growth_Rate_in_Perpetuity),"") ->  | Z94: =IF(AND(Z$9=Number_of_Periods,Terminal_Value_Switch=Yes),Z93*(1+Growth_Rate_in_Perpetuity)/(Pre_Tax_WACC-Growth_Rate_in_Perpetuity),"") ->  | AA94: =IF(AND(AA$9=Number_of_Periods,Terminal_Value_Switch=Yes),AA93*(1+Growth_Rate_in_Perpetuity)/(Pre_Tax_WACC-Growth_Rate_in_Perpetuity),"") ->  | AB94: =IF(AND(AB$9=Number_of_Periods,Terminal_Value_Switch=Yes),AB93*(1+Growth_Rate_in_Perpetuity)/(Pre_Tax_WACC-Growth_Rate_in_Perpetuity),"") ->  | AC94: =IF(AND(AC$9=Number_of_Periods,Terminal_Value_Switch=Yes),AC93*(1+Growth_Rate_in_Perpetuity)/(Pre_Tax_WACC-Growth_Rate_in_Perpetuity),"") -> 
E96: Total (Undiscounted) | F96: =F94 -> $'000 | J96: =SUM(J93:J94) -> 100 | K96: 100 | L96: 100 | M96: 100 | N96: 100 | O96: 100 | P96: 100 | Q96: 1156.868981 | R96: 0 | S96: 0 | T96: 0 | U96: 0 | V96: 0 | W96: 0 | X96: 0 | Y96: 0 | Z96: 0 | AA96: 0 | AB96: 0 | AC96: 0
E98: Discount Factor | F98: # | J98: =IF(J$9<=Number_of_Periods,J$47,"") -> 0.9462433396 | K98: 0.8473719289 | L98: 0.7589459997 | M98: 0.6797475947 | N98: 0.6087218862 | O98: 0.5451175371 | P98: 0.4882328055 | Q98: 0.4372841748
E100: Present Value(s) | F100: =F96 -> $'000 | J100: =IF(J$9<=Number_of_Periods,J96*J98,"") -> 94.62433396 | K100: 84.73719289 | L100: 75.89459997 | M100: 67.97475947 | N100: 60.87218862 | O100: 54.51175371 | P100: 48.82328055 | Q100: 505.8804979
E102: NPV | F102: =F100 -> $'000 | G102: =(ROUND(I71-I102,Rounding_Accuracy)<>0)*1 -> 0 | I102: =SUM(J100:AC100) -> 993.3186071
E104: TV Tolerance | F104: =F24 -> [1,0] | G104: =AND(Terminal_Value_Switch=Yes,(SUMPRODUCT(J94:AC94,J98:AC98)/I102)>TV_Tolerance)*1 -> 0
C107: Summary
D109: Pre-Tax Cost of Equity
E111: ="Correct "&$D$109 -> Correct Pre-Tax Cost of Equity | F111: % | G111: =PreTax_Cost_of_Equity -> 0.1530229798
E112: ="Incorrect "&$D$109 -> Incorrect Pre-Tax Cost of Equity | F112: % | G112: =PostTax_Cost_of_Equity/(1-Tax_Rate) -> 0.1714285714
E114: Difference | F114: % | G114: =ABS(G111-G112) -> 0.01840559167

Sheet Timing
A1: =IF(ISERROR(RIGHT(CELL("filename",A1),LEN(CELL("filename",A1))-FIND("]",CELL("filename",A1)))), "", RIGHT(CELL("filename",A1),LEN(CELL("filename",A1))-FIND("]",CELL("filename",A1)))) -> Timing
A2: =Model_Name -> SP Calculating the Pre-Tax Cost of Equity.xlsm
A3: Navigator
B4: Error Checks: | F4: =Overall_Error_Check -> 0
J5: =J$7 -> 2020-12-31 | K5: =K$7 -> 2021-12-31 | L5: =L$7 -> 2022-12-31 | M5: =M$7 -> 2023-12-31 | N5: =N$7 -> 2024-12-31 | O5: =O$7 -> 2025-12-31 | P5: 2026-12-31 | Q5: 2027-12-31 | R5: 2028-12-31 | S5: 2029-12-31 | T5: 2030-12-31 | U5: 2031-12-31 | V5: 2032-12-31 | W5: 2033-12-31 | X5: 2034-12-31 | Y5: 2035-12-31 | Z5: =Z$7 -> 2036-12-31 | AA5: 2037-12-31 | AB5: 2038-12-31 | AC5: =AC$7 -> 2039-12-31
C6: Start Date | J6: =IF(J$9=1,Model_Start_Date,I$7+1) -> 2020-01-01 | K6: 2021-01-01 | L6: 2022-01-01 | M6: 2023-01-01 | N6: 2024-01-01 | O6: 2025-01-01 | P6: 2026-01-01 | Q6: 2027-01-01 | R6: 2028-01-01 | S6: 2029-01-01 | T6: 2030-01-01 | U6: 2031-01-01 | V6: 2032-01-01 | W6: 2033-01-01 | X6: 2034-01-01 | Y6: 2035-01-01 | Z6: 2036-01-01 | AA6: 2037-01-01 | AB6: 2038-01-01 | AC6: 2039-01-01
C7: End Date | J7: =EOMONTH(J$6,MOD(Periodicity+Reporting_Month_Factor-MONTH(J$6),Periodicity)) -> 2020-12-31 | K7: 2021-12-31 | L7: 2022-12-31 | M7: 2023-12-31 | N7: 2024-12-31 | O7: 2025-12-31 | P7: 2026-12-31 | Q7: 2027-12-31 | R7: 2028-12-31 | S7: 2029-12-31 | T7: 2030-12-31 | U7: 2031-12-31 | V7: 2032-12-31 | W7: 2033-12-31 | X7: 2034-12-31 | Y7: 2035-12-31 | Z7: 2036-12-31 | AA7: 2037-12-31 | AB7: 2038-12-31 | AC7: 2039-12-31
C8: Number of Days | J8: =J7-J6+1 -> 366 | K8: =K7-K6+1 -> 365 | L8: 365 | M8: 365 | N8: 366 | O8: =O7-O6+1 -> 365 | P8: 365 | Q8: 365 | R8: 366 | S8: 365 | T8: 365 | U8: 365 | V8: 366 | W8: 365 | X8: 365 | Y8: 365 | Z8: 366 | AA8: =AA7-AA6+1 -> 365 | AB8: 365 | AC8: 365
C9: Counter | I9: 0 | J9: =N(I$9)+1 -> 1 | K9: =N(J$9)+1 -> 2 | L9: 3 | M9: 4 | N9: 5 | O9: =N(N$9)+1 -> 6 | P9: =N(O$9)+1 -> 7 | Q9: =N(P$9)+1 -> 8 | R9: =N(Q$9)+1 -> 9 | S9: =N(R$9)+1 -> 10 | T9: =N(S$9)+1 -> 11 | U9: =N(T$9)+1 -> 12 | V9: =N(U$9)+1 -> 13 | W9: =N(V$9)+1 -> 14 | X9: =N(W$9)+1 -> 15 | Y9: =N(X$9)+1 -> 16 | Z9: =N(Y$9)+1 -> 17 | AA9: =N(Z$9)+1 -> 18 | AB9: =N(AA$9)+1 -> 19 | AC9: 20
B11: =MAX($B$10:$B10)+1 -> 1 | C11: Timing Assumptions
C13: Data (do not change once modelling has commenced)
D15: Model Start Date | H15: 2020-01-01
D17: Number of Months in a Full Period | H17: 12
D19: Example Reporting Month | H19: 12 | I19: ="e.g. "&TEXT(DATE(YEAR(Model_Start_Date)+IF(Example_Reporting_Month<MONTH(Model_Start_Date),1,0),Example_Reporting_Month+1,1)-1,"dd-Mmm-yy") -> e.g. 31-Dec-20
D21: Reporting Month Factor | H21: =MOD(Example_Reporting_Month-1,Periodicity)+1 -> 12
D23: Months per Year | H23: 12

Sheet Lookup Data
A1: =IF(ISERROR(RIGHT(CELL("filename",A1),LEN(CELL("filename",A1))-FIND("]",CELL("filename",A1)))), "", RIGHT(CELL("filename",A1),LEN(CELL("filename",A1))-FIND("]",CELL("filename",A1)))) -> Lookup Data
A2: =Model_Name -> SP Calculating the Pre-Tax Cost of Equity.xlsm
A3: Navigator
E4: Error Checks: | I4: =Overall_Error_Check -> 0
B6: =MAX($B$5:$B5)+1 -> 1 | C6: Timing of Cash Flows
C8: Lookup Data
D10: LU_Timing
F12: =D10 -> LU_Timing
F13: Start | H13: =F12 -> LU_Timing
F14: Middle
F15: End
B18: =MAX($B$5:$B17)+1 -> 2 | C18: Yes or No
C20: Lookup Data
D22: LU_Yes_No
F24: =D22 -> LU_Yes_No
E25: Yes | F25: Yes | H25: =F24 -> LU_Yes_No
E26: No | F26: No

Sheet Error Checks
A1: =IF(ISERROR(RIGHT(CELL("filename",A1),LEN(CELL("filename",A1))-FIND("]",CELL("filename",A1)))), "", RIGHT(CELL("filename",A1),LEN(CELL("filename",A1))-FIND("]",CELL("filename",A1)))) -> Error Checks
A2: =Model_Name -> SP Calculating the Pre-Tax Cost of Equity.xlsm
A3: Navigator
B4: Error Checks: | F4: =Overall_Error_Check -> 0
B6: =MAX($B$5:$B5)+1 -> 1 | C6: Error Checks
C8: Summary of Errors
D10: Assumptions
E12: NPVs reconcile | I12: =HL_NPV_Check -> 0
E13: Post-Tax TV within tolerance | I13: =HL_PostTax_TV_Tolerance -> 0
E14: Pre-Tax TV within tolerance | I14: =HL_PreTax_TV_Tolerance -> 0
E17: =C8 -> Summary of Errors | I17: =MIN(1,SUM(I11:I15)) -> 0
